[Event "*** Biggest EVER Titled Tuesday"]
[Site "Chess.com"]
[Date "2018.04.17"]
[Round "8"]
[White "Fandorine"]
[Black "pulvettd"]
[Result "1-0"]
[WhiteElo "2714"]
[BlackElo "2539"]
[TimeControl "180+2"]
[EndTime "14:54:05 PDT"]
[Termination "Fandorine won by checkmate"]

1. e4 {[%clk 0:03:01.9]} 1... c5 {[%clk 0:03:00.8]} 2. Nf3 {[%clk 0:03:02.8]}
2... d6 {[%clk 0:03:01.9]} 3. Nc3 {[%clk 0:03:02.6]} 3... a6 {[%clk 0:03:00.7]}
4. d4 {[%clk 0:03:03.2]} 4... cxd4 {[%clk 0:03:02.6]} 5. Nxd4 {[%clk 0:03:04.3]}
5... Nf6 {[%clk 0:03:04.5]} 6. Be3 {[%clk 0:03:04]} 6... e5 {[%clk 0:03:04]} 7.
Nf3 {[%clk 0:03:04.8]} 7... Qc7 {[%clk 0:02:55]} 8. a4 {[%clk 0:03:05.4]} 8...
Nbd7 {[%clk 0:02:55.9]} 9. Be2 {[%clk 0:03:02.4]} 9... b6 {[%clk 0:02:56.2]} 10.
O-O {[%clk 0:02:45.7]} 10... Bb7 {[%clk 0:02:57.3]} 11. Qd3 {[%clk 0:02:46.8]}
11... Be7 {[%clk 0:02:56.9]} 12. Rfd1 {[%clk 0:02:29.1]} 12... O-O {[%clk
0:02:55.6]} 13. Nd2 {[%clk 0:02:30.2]} 13... Rac8 {[%clk 0:02:53.1]} 14. Nc4
{[%clk 0:02:28.4]} 14... Rfd8 {[%clk 0:02:19.6]} 15. Nxd6 {[%clk 0:02:17.7]}
15... Nf8 {[%clk 0:01:51.7]} 16. Nxc8 {[%clk 0:02:16.7]} 16... Rxd3 {[%clk
0:01:52.7]} 17. Nxe7+ {[%clk 0:02:17.4]} 17... Qxe7 {[%clk 0:01:54.6]} 18. Rxd3
{[%clk 0:01:54.6]} 18... Nxe4 {[%clk 0:01:51.4]} 19. Bxb6 {[%clk 0:01:47.2]}
19... Qb4 {[%clk 0:01:46.5]} 20. Nxe4 {[%clk 0:01:41.9]} 20... Qxb2 {[%clk
0:01:42.5]} 21. Rdd1 {[%clk 0:01:24.8]} 21... Bxe4 {[%clk 0:01:29.9]} 22. a5
{[%clk 0:01:20.9]} 22... Bxc2 {[%clk 0:01:19]} 23. Re1 {[%clk 0:01:21.9]} 23...
Nd7 {[%clk 0:01:12.8]} 24. Be3 {[%clk 0:00:52.3]} 24... Qb7 {[%clk 0:01:09.7]}
25. Rec1 {[%clk 0:00:35.4]} 25... Be4 {[%clk 0:01:09]} 26. Bf1 {[%clk
0:00:27.8]} 26... h6 {[%clk 0:01:05.6]} 27. Rc3 {[%clk 0:00:21.5]} 27... Nf6
{[%clk 0:01:04.4]} 28. Bb6 {[%clk 0:00:19]} 28... Nd5 {[%clk 0:01:01.8]} 29. Rb3
{[%clk 0:00:20.1]} 29... Nf4 {[%clk 0:00:58.7]} 30. f3 {[%clk 0:00:21.3]} 30...
Bd5 {[%clk 0:00:56]} 31. Rb2 {[%clk 0:00:22.5]} 31... Qc8 {[%clk 0:00:53.9]} 32.
Re1 {[%clk 0:00:10.5]} 32... Qc3 {[%clk 0:00:50.4]} 33. Rbb1 {[%clk 0:00:11.9]}
33... Bc4 {[%clk 0:00:37.8]} 34. Rbc1 {[%clk 0:00:08.9]} 34... Qd2 {[%clk
0:00:35.6]} 35. Be3 {[%clk 0:00:08.5]} 35... Qxa5 {[%clk 0:00:32.9]} 36. Bxc4
{[%clk 0:00:09.2]} 36... Qb4 {[%clk 0:00:21.8]} 37. Bxa6 {[%clk 0:00:05.4]}
37... Nd5 {[%clk 0:00:19.2]} 38. Bf2 {[%clk 0:00:05.2]} 38... Qa3 {[%clk
0:00:17.3]} 39. Bf1 {[%clk 0:00:06.7]} 39... Nf6 {[%clk 0:00:04.1]} 40. Rc8+
{[%clk 0:00:07.2]} 40... Kh7 {[%clk 0:00:04.9]} 41. Rxe5 {[%clk 0:00:08.7]}
41... Qa1 {[%clk 0:00:05.4]} 42. Rec5 {[%clk 0:00:08.2]} 42... Nh5 {[%clk
0:00:06]} 43. Rc1 {[%clk 0:00:09.6]} 43... Qa5 {[%clk 0:00:04.8]} 44. R8c5
{[%clk 0:00:10.3]} 44... Qa3 {[%clk 0:00:04]} 45. R1c3 {[%clk 0:00:11]} 45...
Qa1 {[%clk 0:00:04.8]} 46. Rc1 {[%clk 0:00:11.7]} 46... Qa3 {[%clk 0:00:05.3]}
47. R5c3 {[%clk 0:00:13.2]} 47... Qb2 {[%clk 0:00:05.7]} 48. g3 {[%clk
0:00:12.4]} 48... Nf6 {[%clk 0:00:06.3]} 49. R3c2 {[%clk 0:00:13.2]} 49... Qb3
{[%clk 0:00:06.8]} 50. Kg2 {[%clk 0:00:14.5]} 50... h5 {[%clk 0:00:07]} 51. Bc4
{[%clk 0:00:15.5]} 51... Qa3 {[%clk 0:00:07.2]} 52. Bxf7 {[%clk 0:00:15.5]}
52... h4 {[%clk 0:00:08.3]} 53. gxh4 {[%clk 0:00:16.7]} 53... Qa4 {[%clk
0:00:05.6]} 54. Bc4 {[%clk 0:00:16.6]} 54... Nh5 {[%clk 0:00:04.1]} 55. Bd3+
{[%clk 0:00:17.9]} 55... Kg8 {[%clk 0:00:02.5]} 56. Rc8+ {[%clk 0:00:14.1]}
56... Kf7 {[%clk 0:00:03.7]} 57. R1c7+ {[%clk 0:00:15]} 57... Kf6 {[%clk
0:00:05]} 58. Rc6+ {[%clk 0:00:15.4]} 58... Kf7 {[%clk 0:00:06.2]} 59. Bg6+
{[%clk 0:00:16.1]} 59... Ke7 {[%clk 0:00:07.5]} 60. Bc5+ {[%clk 0:00:14.5]}
60... Kd7 {[%clk 0:00:07.7]} 61. Bf5# {[%clk 0:00:14.6]} 1-0

[Event "*** Biggest EVER Titled Tuesday"]
[Site "Chess.com"]
[Date "2018.04.17"]
[Round "8"]
[White "GMKrikor"]
[Black "gkchesstiger"]
[Result "1/2-1/2"]
[WhiteElo "2633"]
[BlackElo "2768"]
[TimeControl "180+2"]
[EndTime "14:54:06 PDT"]
[Termination "Game drawn by repetition"]

1. e4 {[%clk 0:03:01.9]} 1... c5 {[%clk 0:03:00.2]} 2. Nf3 {[%clk 0:03:02.7]}
2... e6 {[%clk 0:03:00.7]} 3. d4 {[%clk 0:03:03.6]} 3... cxd4 {[%clk 0:03:01.3]}
4. Nxd4 {[%clk 0:03:05.5]} 4... a6 {[%clk 0:03:02.1]} 5. Bd3 {[%clk 0:03:06]}
5... Bc5 {[%clk 0:03:01.7]} 6. Nb3 {[%clk 0:03:06.3]} 6... Ba7 {[%clk
0:03:02.9]} 7. O-O {[%clk 0:02:54.4]} 7... d6 {[%clk 0:03:03.6]} 8. Qe2 {[%clk
0:02:45.6]} 8... Nf6 {[%clk 0:02:59.3]} 9. Be3 {[%clk 0:02:41]} 9... Bxe3 {[%clk
0:03:00.2]} 10. Qxe3 {[%clk 0:02:42.9]} 10... e5 {[%clk 0:03:01.6]} 11. c4
{[%clk 0:02:41.3]} 11... Be6 {[%clk 0:03:00.6]} 12. Nc3 {[%clk 0:02:42.2]} 12...
Nbd7 {[%clk 0:03:00.9]} 13. Rfd1 {[%clk 0:02:34.5]} 13... Qb6 {[%clk 0:03:01.6]}
14. Qe1 {[%clk 0:02:08.5]} 14... Rc8 {[%clk 0:02:58.6]} 15. Nd5 {[%clk
0:02:01.6]} 15... Bxd5 {[%clk 0:02:54.4]} 16. cxd5 {[%clk 0:02:03.5]} 16... Nc5
{[%clk 0:02:31.6]} 17. Rac1 {[%clk 0:01:57.5]} 17... Ke7 {[%clk 0:02:29.9]} 18.
Nxc5 {[%clk 0:01:55.5]} 18... Rxc5 {[%clk 0:02:30.1]} 19. Rxc5 {[%clk
0:01:52.5]} 19... Qxc5 {[%clk 0:02:31]} 20. Rc1 {[%clk 0:01:51.7]} 20... Qb6
{[%clk 0:02:32.1]} 21. Qc3 {[%clk 0:01:45.4]} 21... Rb8 {[%clk 0:02:29.5]} 22.
a4 {[%clk 0:01:09]} 22... a5 {[%clk 0:02:29]} 23. Qc7+ {[%clk 0:01:07.2]} 23...
Qxc7 {[%clk 0:02:26.1]} 24. Rxc7+ {[%clk 0:01:09.1]} 24... Kf8 {[%clk
0:02:21.1]} 25. Kf1 {[%clk 0:00:43.4]} 25... b5 {[%clk 0:01:36.8]} 26. axb5
{[%clk 0:00:43.7]} 26... Ke8 {[%clk 0:01:37.9]} 27. Rc6 {[%clk 0:00:41.8]} 27...
Ke7 {[%clk 0:01:37.4]} 28. Ra6 {[%clk 0:00:31.1]} 28... Nd7 {[%clk 0:01:36.8]}
29. Rxa5 {[%clk 0:00:28.8]} 29... Rb7 {[%clk 0:01:26.4]} 30. b4 {[%clk
0:00:26.6]} 30... Nb6 {[%clk 0:01:26.9]} 31. Ra6 {[%clk 0:00:24.2]} 31... Kd8
{[%clk 0:01:24.4]} 32. Ke2 {[%clk 0:00:24.6]} 32... Kc7 {[%clk 0:01:22.1]} 33.
Ke3 {[%clk 0:00:23]} 33... Rb8 {[%clk 0:01:22.1]} 34. Ra7+ {[%clk 0:00:23.6]}
34... Rb7 {[%clk 0:01:22.9]} 35. Ra1 {[%clk 0:00:22.7]} 35... Kd8 {[%clk
0:01:23.3]} 36. Rc1 {[%clk 0:00:23.8]} 36... Rc7 {[%clk 0:01:23.7]} 37. Rc6
{[%clk 0:00:25.5]} 37... Rxc6 {[%clk 0:01:23.7]} 38. bxc6 {[%clk 0:00:23.5]}
38... Kc7 {[%clk 0:01:24.6]} 39. g3 {[%clk 0:00:23.4]} 39... Nc8 {[%clk
0:01:23.2]} 40. f4 {[%clk 0:00:22.7]} 40... f6 {[%clk 0:01:17.6]} 41. Be2 {[%clk
0:00:22.2]} 41... Nb6 {[%clk 0:01:12.9]} 42. fxe5 {[%clk 0:00:19.1]} 42... dxe5
{[%clk 0:01:11.7]} 43. b5 {[%clk 0:00:17]} 43... Nc8 {[%clk 0:01:11.2]} 44. Bd3
{[%clk 0:00:17.1]} 44... Kb6 {[%clk 0:01:11.2]} 45. Bf1 {[%clk 0:00:14.7]} 45...
Nd6 {[%clk 0:01:11.9]} 46. Bd3 {[%clk 0:00:14.9]} 46... Kc5 {[%clk 0:01:12.4]}
47. Kd2 {[%clk 0:00:14.4]} 47... Kb6 {[%clk 0:01:06.1]} 48. Kc3 {[%clk 0:00:13]}
48... Kc5 {[%clk 0:01:07.3]} 49. Kd2 {[%clk 0:00:10.2]} 49... Kb6 {[%clk
0:01:08]} 50. Ke3 {[%clk 0:00:11.5]} 50... Kc5 {[%clk 0:01:08.4]} 51. Kf3 {[%clk
0:00:11.9]} 51... Kb6 {[%clk 0:01:09.4]} 52. Kg4 {[%clk 0:00:13]} 52... g6
{[%clk 0:01:06.8]} 53. h4 {[%clk 0:00:12]} 53... Kc5 {[%clk 0:01:02.4]} 54. Kf3
{[%clk 0:00:12.6]} 54... Kb6 {[%clk 0:01:01.6]} 55. g4 {[%clk 0:00:14]} 55... g5
{[%clk 0:01:01.6]} 56. hxg5 {[%clk 0:00:08.6]} 56... fxg5 {[%clk 0:01:02.6]} 57.
Ke3 {[%clk 0:00:09.9]} 57... h6 {[%clk 0:01:02.7]} 58. Kd2 {[%clk 0:00:10.4]}
58... Kc5 {[%clk 0:01:01.2]} 59. Kc3 {[%clk 0:00:11.6]} 59... Ne8 {[%clk
0:00:54.5]} 60. Bb1 {[%clk 0:00:09]} 60... Nd6 {[%clk 0:00:54.5]} 61. Bd3 {[%clk
0:00:10.1]} 61... Ne8 {[%clk 0:00:55.7]} 62. Kb3 {[%clk 0:00:11.5]} 62... Nd6
{[%clk 0:00:54.9]} 63. Ka4 {[%clk 0:00:12.5]} 63... Kb6 {[%clk 0:00:55.8]} 64.
Kb4 {[%clk 0:00:14.1]} 64... Ne8 {[%clk 0:00:55.1]} 65. Bb1 {[%clk 0:00:10.1]}
65... Nd6 {[%clk 0:00:56.1]} 66. Bd3 {[%clk 0:00:11.4]} 66... Ne8 {[%clk
0:00:57.1]} 67. Be2 {[%clk 0:00:10.8]} 67... Nd6 {[%clk 0:00:58]} 68. Bd3 {[%clk
0:00:12.1]} 68... Ne8 {[%clk 0:00:59]} 69. Kc3 {[%clk 0:00:06.9]} 69... Kc5
{[%clk 0:00:58.2]} 70. Kb3 {[%clk 0:00:08.1]} 70... Nd6 {[%clk 0:00:56.8]} 71.
Ka4 {[%clk 0:00:08.6]} 71... Kb6 {[%clk 0:00:57.9]} 72. Kb4 {[%clk 0:00:10]}
72... Ne8 {[%clk 0:00:59]} 1/2-1/2

[Event "*** Biggest EVER Titled Tuesday"]
[Site "Chess.com"]
[Date "2018.04.17"]
[Round "8"]
[White "Alex_Molchanov"]
[Black "TheBigBoss04"]
[Result "1-0"]
[WhiteElo "2553"]
[BlackElo "2516"]
[TimeControl "180+2"]
[EndTime "14:54:12 PDT"]
[Termination "Alex_Molchanov won by resignation"]

1. d4 {[%clk 0:03:01.9]} 1... Nf6 {[%clk 0:03:01]} 2. c4 {[%clk 0:03:02.5]} 2...
g6 {[%clk 0:03:02.3]} 3. Nf3 {[%clk 0:03:01.1]} 3... Bg7 {[%clk 0:03:02.6]} 4.
Nc3 {[%clk 0:03:01.6]} 4... d5 {[%clk 0:03:04.3]} 5. Bg5 {[%clk 0:03:01.8]} 5...
Ne4 {[%clk 0:03:04.4]} 6. cxd5 {[%clk 0:03:02.5]} 6... Nxg5 {[%clk 0:02:55.7]}
7. Nxg5 {[%clk 0:03:03.5]} 7... O-O {[%clk 0:02:53.9]} 8. h4 {[%clk 0:02:59.2]}
8... h6 {[%clk 0:02:43.4]} 9. Nf3 {[%clk 0:02:59.3]} 9... c6 {[%clk 0:02:34.3]}
10. dxc6 {[%clk 0:02:58.8]} 10... Nxc6 {[%clk 0:02:35.2]} 11. e3 {[%clk
0:03:00.1]} 11... Bg4 {[%clk 0:02:34.8]} 12. Be2 {[%clk 0:02:59.3]} 12... Qb6
{[%clk 0:02:34.6]} 13. Qd2 {[%clk 0:02:39.3]} 13... Rfd8 {[%clk 0:02:30.3]} 14.
O-O {[%clk 0:02:38.2]} 14... e6 {[%clk 0:02:20.5]} 15. Rfd1 {[%clk 0:02:34.1]}
15... Bf6 {[%clk 0:02:01.1]} 16. g3 {[%clk 0:02:31.9]} 16... Rac8 {[%clk
0:01:51.8]} 17. Nh2 {[%clk 0:02:21.2]} 17... Bh3 {[%clk 0:01:40.5]} 18. Bg4
{[%clk 0:02:14.5]} 18... Bxg4 {[%clk 0:01:37.7]} 19. Nxg4 {[%clk 0:02:15.7]}
19... Bg7 {[%clk 0:01:39.4]} 20. Qe2 {[%clk 0:02:14]} 20... h5 {[%clk
0:01:35.4]} 21. Nh2 {[%clk 0:02:14.9]} 21... Na5 {[%clk 0:01:36]} 22. Rac1
{[%clk 0:02:13.5]} 22... Nc4 {[%clk 0:01:28.3]} 23. b3 {[%clk 0:02:08.1]} 23...
Na3 {[%clk 0:01:24.5]} 24. Na4 {[%clk 0:02:03.8]} 24... Qb4 {[%clk 0:01:21.1]}
25. Nf3 {[%clk 0:02:01.2]} 25... b6 {[%clk 0:01:16]} 26. Qa6 {[%clk 0:01:58.1]}
26... Rc2 {[%clk 0:00:51.3]} 27. Rxc2 {[%clk 0:01:48.5]} 27... Nxc2 {[%clk
0:00:51.8]} 28. Qxa7 {[%clk 0:01:47.8]} 28... b5 {[%clk 0:00:48.9]} 29. Nc5
{[%clk 0:01:39.5]} 29... Qc3 {[%clk 0:00:40.4]} 30. Ng5 {[%clk 0:01:29.5]} 30...
Rf8 {[%clk 0:00:07.1]} 31. Nce4 {[%clk 0:01:22.2]} 31... Qc6 {[%clk 0:00:05.2]}
32. Qc5 {[%clk 0:01:21]} 32... Qxc5 {[%clk 0:00:04.9]} 33. Nxc5 {[%clk
0:01:22.1]} 33... Nb4 {[%clk 0:00:06.7]} 34. a4 {[%clk 0:01:22.5]} 34... bxa4
{[%clk 0:00:07.7]} 35. bxa4 {[%clk 0:01:23.9]} 35... Ra8 {[%clk 0:00:09.3]} 36.
Rb1 {[%clk 0:01:24]} 36... Nd5 {[%clk 0:00:11]} 37. Rb7 {[%clk 0:01:21]} 37...
Nc3 {[%clk 0:00:09.2]} 38. Rxf7 {[%clk 0:01:17.7]} 38... Nxa4 {[%clk 0:00:09]}
39. Ncxe6 {[%clk 0:01:18.3]} 39... Bh6 {[%clk 0:00:10.6]} 40. Rf6 {[%clk
0:01:17.9]} 40... Bxg5 {[%clk 0:00:10.6]} 41. hxg5 {[%clk 0:01:15]} 41... Kh7
{[%clk 0:00:10.7]} 42. Rf7+ {[%clk 0:01:14.4]} 42... Kh8 {[%clk 0:00:12.2]} 43.
Nf4 {[%clk 0:01:13.9]} 43... Ra6 {[%clk 0:00:11.5]} 44. d5 {[%clk 0:01:09.3]}
44... Nc3 {[%clk 0:00:11.5]} 45. Re7 {[%clk 0:01:08.4]} 45... Kg8 {[%clk
0:00:08.9]} 46. Kg2 {[%clk 0:01:07.7]} 46... Rd6 {[%clk 0:00:08.1]} 47. e4
{[%clk 0:01:03.6]} 47... Nb5 {[%clk 0:00:04.7]} 48. e5 {[%clk 0:01:01.6]} 48...
Rd8 {[%clk 0:00:06.2]} 49. d6 {[%clk 0:01:00.5]} 49... Nd4 {[%clk 0:00:04]} 50.
Nxg6 {[%clk 0:00:59.5]} 50... Nf5 {[%clk 0:00:05.3]} 51. Ra7 {[%clk 0:00:59.2]}
51... Nd4 {[%clk 0:00:05.2]} 52. Nf4 {[%clk 0:00:57.1]} 52... Nc6 {[%clk
0:00:05.3]} 53. Ra6 {[%clk 0:00:31.5]} 53... Nxe5 {[%clk 0:00:06.3]} 54. Nxh5
{[%clk 0:00:32.3]} 54... Nf7 {[%clk 0:00:07.9]} 55. f4 {[%clk 0:00:30.5]} 55...
Nxd6 {[%clk 0:00:08.4]} 56. Kf3 {[%clk 0:00:28.1]} 56... Nf5 {[%clk 0:00:09.6]}
57. Kg4 {[%clk 0:00:29.1]} 57... Ne3+ {[%clk 0:00:10.5]} 58. Kh3 {[%clk
0:00:30.1]} 58... Nf5 {[%clk 0:00:11.3]} 59. Ra5 {[%clk 0:00:28]} 59... Ne3
{[%clk 0:00:11.5]} 60. g6 {[%clk 0:00:26.8]} 60... Nc4 {[%clk 0:00:08.3]} 61.
Ra7 {[%clk 0:00:23.8]} 61... Rf8 {[%clk 0:00:09.6]} 62. g7 {[%clk 0:00:23.3]}
62... Rf5 {[%clk 0:00:05.8]} 63. Ra8+ {[%clk 0:00:23.1]} 63... Kh7 {[%clk
0:00:07.4]} 64. g8=Q+ {[%clk 0:00:23.7]} 64... Kh6 {[%clk 0:00:09]} 65. Ra6+
{[%clk 0:00:21.5]} 1-0

[Event "*** Biggest EVER Titled Tuesday"]
[Site "Chess.com"]
[Date "2018.04.17"]
[Round "8"]
[White "GianmarcoVaR"]
[Black "SloLev"]
[Result "1/2-1/2"]
[WhiteElo "2518"]
[BlackElo "2391"]
[TimeControl "180+2"]
[EndTime "14:54:22 PDT"]
[Termination "Game drawn by agreement"]

1. d4 {[%clk 0:02:45]} 1... d5 {[%clk 0:02:59.7]} 2. Nf3 {[%clk 0:02:45.1]} 2...
Nf6 {[%clk 0:03:00.5]} 3. c4 {[%clk 0:02:46.9]} 3... e6 {[%clk 0:03:01.3]} 4. g3
{[%clk 0:02:48.2]} 4... c6 {[%clk 0:03:01.2]} 5. Bg2 {[%clk 0:02:50.1]} 5... Bd6
{[%clk 0:03:02.3]} 6. O-O {[%clk 0:02:51.2]} 6... O-O {[%clk 0:03:03.7]} 7. b3
{[%clk 0:02:51.9]} 7... Nbd7 {[%clk 0:03:04.6]} 8. Bb2 {[%clk 0:02:52.2]} 8...
b6 {[%clk 0:03:06]} 9. Nc3 {[%clk 0:02:50.9]} 9... Bb7 {[%clk 0:03:07.3]} 10.
Qc2 {[%clk 0:02:48.5]} 10... Rc8 {[%clk 0:03:07.9]} 11. Rfd1 {[%clk 0:02:46.3]}
11... Qe7 {[%clk 0:03:08.8]} 12. e4 {[%clk 0:02:46.3]} 12... dxe4 {[%clk
0:03:08.5]} 13. Nxe4 {[%clk 0:02:47.2]} 13... Nxe4 {[%clk 0:03:09.9]} 14. Qxe4
{[%clk 0:02:48.4]} 14... Nf6 {[%clk 0:03:11.4]} 15. Qe2 {[%clk 0:02:45]} 15...
c5 {[%clk 0:02:54.8]} 16. Qf1 {[%clk 0:02:33.5]} 16... cxd4 {[%clk 0:02:52.1]}
17. Nxd4 {[%clk 0:02:34.6]} 17... Rfd8 {[%clk 0:02:21.8]} 18. Nb5 {[%clk
0:02:15.1]} 18... Bxg2 {[%clk 0:02:18.5]} 19. Qxg2 {[%clk 0:02:15.5]} 19... Bc5
{[%clk 0:02:17]} 20. Bxf6 {[%clk 0:02:13.7]} 20... Qxf6 {[%clk 0:02:12.4]} 21.
Nxa7 {[%clk 0:02:13.6]} 21... Ra8 {[%clk 0:02:12.4]} 22. Nc6 {[%clk 0:00:32.5]}
22... Rxd1+ {[%clk 0:02:12]} 23. Rxd1 {[%clk 0:00:32.7]} 23... Rxa2 {[%clk
0:02:11.4]} 24. Rd8+ {[%clk 0:00:14.5]} 24... Bf8 {[%clk 0:02:12.6]} 25. Qf1
{[%clk 0:00:09.2]} 25... Ra1 {[%clk 0:02:06.8]} 26. Rd1 {[%clk 0:00:09.3]} 26...
Ra2 {[%clk 0:02:08.1]} 27. b4 {[%clk 0:00:07]} 27... g6 {[%clk 0:02:08]} 28. Qe1
{[%clk 0:00:05.8]} 28... Bh6 {[%clk 0:02:04.9]} 29. Rd8+ {[%clk 0:00:04.8]}
29... Kg7 {[%clk 0:02:05.9]} 30. Rd1 {[%clk 0:00:05]} 30... Bg5 {[%clk
0:02:00.3]} 31. Ne5 {[%clk 0:00:05.7]} 31... Ra7 {[%clk 0:01:05]} 32. f4 {[%clk
0:00:05.4]} 32... Bh6 {[%clk 0:01:03.2]} 33. Qe3 {[%clk 0:00:06]} 33... Qe7
{[%clk 0:00:59.4]} 34. Nc6 {[%clk 0:00:06.1]} 34... Qc7 {[%clk 0:00:39.8]} 35.
Nxa7 {[%clk 0:00:06.8]} 35... Qxa7 {[%clk 0:00:38.9]} 36. Qe5+ {[%clk
0:00:07.3]} 36... Kg8 {[%clk 0:00:36.8]} 37. Rd8+ {[%clk 0:00:06.7]} 37... Bf8
{[%clk 0:00:38.4]} 38. Qd6 {[%clk 0:00:05.4]} 38... Qa1+ {[%clk 0:00:39.6]} 39.
Kg2 {[%clk 0:00:05.9]} 39... Qb2+ {[%clk 0:00:40]} 40. Kh3 {[%clk 0:00:06.7]}
40... Qg7 {[%clk 0:00:41.6]} 41. Qxb6 {[%clk 0:00:07.3]} 41... Qh6+ {[%clk
0:00:41.9]} 42. Kg2 {[%clk 0:00:07.9]} 42... Qh5 {[%clk 0:00:41.7]} 43. Qf2
{[%clk 0:00:04.1]} 43... Qf5 {[%clk 0:00:41.1]} 44. c5 {[%clk 0:00:04.1]} 44...
Qe4+ {[%clk 0:00:42.2]} 45. Kg1 {[%clk 0:00:03.6]} 45... Qxb4 {[%clk 0:00:44.1]}
46. Rd2 {[%clk 0:00:03.4]} 46... Kg7 {[%clk 0:00:41.9]} 47. Qe2 {[%clk
0:00:03.5]} 47... Bxc5+ {[%clk 0:00:41.9]} 48. Kg2 {[%clk 0:00:04.6]} 48... Be7
{[%clk 0:00:42]} 49. Rc2 {[%clk 0:00:05.2]} 49... Qb7+ {[%clk 0:00:41.1]} 50.
Qf3 {[%clk 0:00:06.2]} 50... Qd7 {[%clk 0:00:39.5]} 51. Qe4 {[%clk 0:00:06.4]}
51... h5 {[%clk 0:00:39.9]} 52. h3 {[%clk 0:00:07.1]} 52... Bf6 {[%clk
0:00:39.6]} 53. g4 {[%clk 0:00:07.3]} 53... hxg4 {[%clk 0:00:40.1]} 54. hxg4
{[%clk 0:00:08.5]} 54... Be7 {[%clk 0:00:35.7]} 55. g5 {[%clk 0:00:08.9]} 55...
f6 {[%clk 0:00:34.8]} 56. gxf6+ {[%clk 0:00:06.9]} 56... Bxf6 {[%clk 0:00:35.4]}
57. Qf3 {[%clk 0:00:05.2]} 57... Qf7 {[%clk 0:00:30.7]} 58. Re2 {[%clk
0:00:05.3]} 58... g5 {[%clk 0:00:29.4]} 59. Qg4 {[%clk 0:00:06.2]} 59... Qg6
{[%clk 0:00:26.9]} 60. Ra2 {[%clk 0:00:03.1]} 60... gxf4 {[%clk 0:00:25.8]} 61.
Ra7+ {[%clk 0:00:02.8]} 61... Kh6 {[%clk 0:00:27]} 62. Qxg6+ {[%clk 0:00:02.5]}
62... Kxg6 {[%clk 0:00:28.6]} 63. Kf3 {[%clk 0:00:02.5]} 63... Kf5 {[%clk
0:00:30.2]} 64. Ra4 {[%clk 0:00:02.6]} 64... e5 {[%clk 0:00:30.9]} 65. Ra5
{[%clk 0:00:03.4]} 65... Be7 {[%clk 0:00:31.7]} 66. Rb5 {[%clk 0:00:04.4]} 66...
Bd8 {[%clk 0:00:32.4]} 67. Rd5 {[%clk 0:00:05.1]} 67... Bb6 {[%clk 0:00:33]} 68.
Rb5 {[%clk 0:00:06]} 68... Bd4 {[%clk 0:00:33.7]} 69. Ra5 {[%clk 0:00:07.1]}
69... Bc3 {[%clk 0:00:34.2]} 70. Rb5 {[%clk 0:00:08.1]} 1/2-1/2

[Event "*** Biggest EVER Titled Tuesday"]
[Site "Chess.com"]
[Date "2018.04.17"]
[Round "8"]
[White "lupta_robin"]
[Black "muran29"]
[Result "1-0"]
[WhiteElo "2428"]
[BlackElo "2313"]
[TimeControl "180+2"]
[EndTime "14:54:24 PDT"]
[Termination "lupta_robin won by resignation"]

1. e4 {[%clk 0:03:01.9]} 1... c6 {[%clk 0:02:57.8]} 2. d4 {[%clk 0:03:02.2]}
2... d5 {[%clk 0:02:59]} 3. e5 {[%clk 0:03:03.6]} 3... Bf5 {[%clk 0:02:59.8]} 4.
Nf3 {[%clk 0:03:04.6]} 4... e6 {[%clk 0:03:00.4]} 5. Be2 {[%clk 0:03:05.7]} 5...
Nd7 {[%clk 0:03:01.6]} 6. O-O {[%clk 0:03:01.9]} 6... h5 {[%clk 0:03:02.6]} 7.
c4 {[%clk 0:03:00.6]} 7... Ne7 {[%clk 0:03:03.5]} 8. Nc3 {[%clk 0:03:01.4]} 8...
Nb6 {[%clk 0:03:04.3]} 9. b3 {[%clk 0:02:55.7]} 9... Ng6 {[%clk 0:03:01.2]} 10.
Be3 {[%clk 0:02:40.7]} 10... Rc8 {[%clk 0:02:57.8]} 11. c5 {[%clk 0:02:17.5]}
11... Nd7 {[%clk 0:02:58]} 12. b4 {[%clk 0:02:18.9]} 12... Nh4 {[%clk
0:02:55.4]} 13. Nxh4 {[%clk 0:02:05.2]} 13... Qxh4 {[%clk 0:02:57.3]} 14. Qd2
{[%clk 0:02:05.7]} 14... Be7 {[%clk 0:02:55.2]} 15. b5 {[%clk 0:02:03.7]} 15...
g5 {[%clk 0:02:55.6]} 16. bxc6 {[%clk 0:01:59.9]} 16... bxc6 {[%clk 0:02:56]}
17. Bd3 {[%clk 0:01:50.8]} 17... Nxe5 {[%clk 0:02:38.4]} 18. dxe5 {[%clk
0:01:39.4]} 18... d4 {[%clk 0:02:37.7]} 19. Bxf5 {[%clk 0:01:24.4]} 19... dxc3
{[%clk 0:02:38.4]} 20. Qxc3 {[%clk 0:01:24.9]} 20... exf5 {[%clk 0:02:38.8]} 21.
e6 {[%clk 0:01:22.3]} 21... O-O {[%clk 0:02:39.6]} 22. exf7+ {[%clk 0:01:23.1]}
22... Rxf7 {[%clk 0:02:41.5]} 23. Rad1 {[%clk 0:01:10.4]} 23... f4 {[%clk
0:02:38.5]} 24. Bc1 {[%clk 0:01:01.9]} 24... f3 {[%clk 0:02:38.3]} 25. gxf3
{[%clk 0:00:48.2]} 25... Bf6 {[%clk 0:02:30.4]} 26. Qe3 {[%clk 0:00:27.4]} 26...
Rcf8 {[%clk 0:02:10.6]} 27. Rd6 {[%clk 0:00:21.4]} 27... Re7 {[%clk 0:01:46.4]}
28. Qb3+ {[%clk 0:00:20.9]} 28... Kg7 {[%clk 0:01:43.6]} 29. Bb2 {[%clk
0:00:18.1]} 29... Qf4 {[%clk 0:01:14.2]} 30. Rfd1 {[%clk 0:00:15.3]} 30... g4
{[%clk 0:00:58.7]} 31. Rxf6 {[%clk 0:00:15.4]} 31... Rxf6 {[%clk 0:00:57.2]} 32.
h3 {[%clk 0:00:02.8]} 32... gxf3 {[%clk 0:00:55.7]} 33. Kh1 {[%clk 0:00:03.8]}
33... Kh7 {[%clk 0:00:21.1]} 34. Bxf6 {[%clk 0:00:03.8]} 34... Qxf6 {[%clk
0:00:22.8]} 35. Qd3+ {[%clk 0:00:04.9]} 35... Qg6 {[%clk 0:00:23.5]} 36. Qxg6+
{[%clk 0:00:05.4]} 36... Kxg6 {[%clk 0:00:25.4]} 37. Rd6+ {[%clk 0:00:06.7]}
37... Kg5 {[%clk 0:00:26.3]} 38. Rxc6 {[%clk 0:00:08.6]} 38... Kh4 {[%clk
0:00:23.1]} 39. Rf6 {[%clk 0:00:07.8]} 39... Kxh3 {[%clk 0:00:23]} 40. Rxf3+
{[%clk 0:00:08.8]} 40... Kg4 {[%clk 0:00:24.9]} 41. Rc3 {[%clk 0:00:09.9]} 41...
h4 {[%clk 0:00:24.6]} 42. c6 {[%clk 0:00:10.9]} 42... Rc7 {[%clk 0:00:26]} 43.
Kg2 {[%clk 0:00:11.7]} 43... Kf4 {[%clk 0:00:27.5]} 44. Rc4+ {[%clk 0:00:11.6]}
44... Ke5 {[%clk 0:00:28.1]} 45. Rxh4 {[%clk 0:00:12.5]} 45... Rxc6 {[%clk
0:00:29.2]} 46. Ra4 {[%clk 0:00:14.1]} 46... a6 {[%clk 0:00:29.6]} 47. Kf3
{[%clk 0:00:14.5]} 47... Kf5 {[%clk 0:00:26.9]} 48. Ke3 {[%clk 0:00:14]} 48...
Rc3+ {[%clk 0:00:23.3]} 49. Kd2 {[%clk 0:00:13.9]} 49... Rc6 {[%clk 0:00:19.7]}
50. Kd3 {[%clk 0:00:14.9]} 50... Ke5 {[%clk 0:00:19.7]} 51. f3 {[%clk
0:00:15.3]} 51... Kf5 {[%clk 0:00:21]} 52. f4 {[%clk 0:00:14.4]} 52... Rb6
{[%clk 0:00:22]} 53. Ke3 {[%clk 0:00:14.4]} 53... Rh6 {[%clk 0:00:22.7]} 54.
Ra5+ {[%clk 0:00:15.4]} 54... Kg4 {[%clk 0:00:24]} 55. Rg5+ {[%clk 0:00:15.1]}
55... Kh4 {[%clk 0:00:25.4]} 56. Rg1 {[%clk 0:00:14.6]} 56... Re6+ {[%clk
0:00:25]} 57. Kd4 {[%clk 0:00:15.2]} 57... Re2 {[%clk 0:00:26.2]} 58. f5 {[%clk
0:00:11.6]} 58... Rxa2 {[%clk 0:00:23.9]} 59. f6 {[%clk 0:00:11.5]} 59... Rf2
{[%clk 0:00:23.9]} 60. Ke5 {[%clk 0:00:12.9]} 60... a5 {[%clk 0:00:20.7]} 61.
Ke6 {[%clk 0:00:14.1]} 61... a4 {[%clk 0:00:22]} 62. f7 {[%clk 0:00:15.4]} 62...
a3 {[%clk 0:00:23.5]} 63. Ke7 {[%clk 0:00:16.8]} 63... Re2+ {[%clk 0:00:24.7]}
64. Kf8 {[%clk 0:00:17.1]} 64... a2 {[%clk 0:00:25.2]} 65. Kg8 {[%clk
0:00:18.2]} 65... Rg2+ {[%clk 0:00:06.8]} 66. Rxg2 {[%clk 0:00:18.6]} 66... a1=Q
{[%clk 0:00:08.7]} 67. f8=Q {[%clk 0:00:17.3]} 67... Qa2+ {[%clk 0:00:10.2]} 68.
Rxa2 {[%clk 0:00:17]} 1-0